lending/lending_fUSD_20241025
["ID","MTS","AMOUNT","RATE_DAILY","PERIOD"]
[340813148,1729866670610,-150.0,0.0005846,120]
[340813149,1729866670620,-503.77734307,0.00058555,120]
[340813150,1729866670629,-2373.58934159,0.00058611,15]
[340813151,1729866670639,-900.0,0.0005874,120]
[340813152,1729866670648,-629.39725797,0.00058762,120]
[340813153,1729866670659,-8337.12016997,0.000588,120]
[340813154,1729866670669,-800.0,0.00058832,120]
[340813155,1729866670679,-500.0,0.00058947,120]
[340813156,1729866670688,-500.0,0.00058955,120]
[340813157,1729866670698,-50000.0,0.00059,49]
[340813158,1729866670707,-50000.0,0.00059,59]
[340813159,1729866670717,-188.7312293,0.00059,120]
[340813160,1729866670727,-245.21098236,0.00059,120]
[340813161,1729866670736,-1000.0,0.00059,120]
[340813162,1729866670746,-1056.888523,0.00059,120]
[340813163,1729866670755,-228.84800032,0.00059113,120]
[340813164,1729866670768,-4464.61,0.000592,60]
[340813165,1729866670778,-17705.9363067,0.00059294,120]
[340813166,1729866670787,-700.0,0.00059351,120]
[340813167,1729866670797,-700.0,0.00059363,120]
[340813168,1729866670807,-374.32,0.0005937,2]
[340813169,1729866670817,-700.0,0.00059447,120]
[340813170,1729866670827,-154.102509,0.00059598,120]
[340813171,1729866670837,-700.0,0.00059634,120]
[340813172,1729866670846,-2373.58934159,0.000597,15]
[340813173,1729866670855,-800.0,0.00059751,120]
[340813174,1729866670865,-157.102509,0.00059798,120]
[340813175,1729866670874,-1024196.91238003,0.000598,120]
[340813176,1729866670884,-8337.12016997,0.000598,120]
[340813177,1729866670894,-7866.2686,0.0005989,30]
[340813178,1729866670904,-500.0,0.00059921,120]
[340813179,1729866670913,-30000.0,0.0005993,120]
[340813180,1729866670923,-11013.51547994,0.0005998,120]
[340813181,1729866670932,-150.0,0.0005999,120]
[340813182,1729866670942,-150.0,0.0005999,120]
[340813183,1729866670951,-150.0,0.0005999,120]
[340813184,1729866670961,-150.0,0.0005999,120]
[340813185,1729866670971,-150.0,0.0005999,120]
[340813186,1729866670982,-150.0,0.0005999,120]
[340813187,1729866670991,-150.0,0.0005999,120]
[340813188,1729866671000,-181.93553799,0.0005999,120]
[340813189,1729866671013,-157.102509,0.00059998,120]
[340813190,1729866671023,-482.21605729,0.00059999,120]
[340813191,1729866671033,-398.41460269,0.00059999,120]
[340813192,1729866671043,-447.48206141,0.00059999,120]
[340813193,1729866671052,-354.45479384,0.00059999,31]
[340813194,1729866671062,-50000.0,0.0006,50]
[340813195,1729866671071,-50000.0,0.0006,60]
[340813196,1729866671081,-128597.9050022,0.0006,120]
[340813197,1729866671091,-3018.0,0.0006,120]
[340813198,1729866671100,-10000.0,0.0006,120]
[340813199,1729866671109,-311.9626706,0.0006,120]
[340813200,1729866671119,-1834.78562814,0.0006,120]
[340813201,1729866671128,-203.0,0.0006,120]
[340813202,1729866671138,-4282.34366787,0.0006,60]
[340813203,1729866671147,-5492.95118663,0.0006,7]
[340813204,1729866671157,-1273.0,0.0006,120]
[340813205,1729866671166,-3973.0,0.0006,120]
[340813206,1729866671175,-5000.0,0.0006,120]
[340813207,1729866671185,-600.0,0.0006,120]
[340813208,1729866671280,-11279.0,0.0006,120]
[340813209,1729866671290,-6890.36571557,0.0006,120]
[340813210,1729866671299,-500000.0,0.0006,120]
[340813211,1729866671312,-4055.3697669,0.0006,2]
[340813212,1729866671323,-5081.24,0.0006,60]
[340813213,1729866671332,-361.89946147,0.0006,45]
[340813214,1729866671342,-300.0,0.0006,30]
[340813215,1729866671351,-300.0,0.0006,3]
[340813216,1729866671361,-11452.02139818,0.0006,120]
[340813217,1729866671370,-3152.11,0.0006,120]
[340813218,1729866671380,-163000.0,0.0006,120]
[340813219,1729866671390,-359.15249269,0.0006,96]
[340813220,1729866671399,-4874.58911507,0.0006,96]
[340813221,1729866671410,-900.0,0.00060091,120]
[340813222,1729866671420,-900.0,0.0006012,120]
[340813223,1729866671430,-800.0,0.000602,120]
[340813224,1729866671439,-151.0036365,0.0006027,120]
[340813225,1729866671448,-151.5,0.0006027,120]
[340813226,1729866671458,-2461.99,0.00060273,120]
[340813227,1729866671468,-2461.99,0.00060273,120]
[340813228,1729866671478,-2461.99,0.00060273,120]
[340813229,1729866671487,-2461.99,0.00060273,120]
[340813230,1729866671497,-2461.99,0.00060273,120]
[340813231,1729866671506,-2461.99,0.00060273,120]
[340813232,1729866671518,-2461.99,0.00060273,120]
[340813233,1729866671528,-2461.99,0.00060273,120]
[340813234,1729866671537,-2461.99,0.00060273,120]
[340813235,1729866671546,-2461.99,0.00060273,120]
[340813236,1729866671556,-2461.99,0.00060273,120]
[340813237,1729866671565,-2461.99,0.00060273,120]
[340813238,1729866671574,-2461.99,0.00060273,120]
[340813239,1729866671584,-2461.99,0.00060273,120]
[340813240,1729866671593,-2461.99,0.00060273,120]
[340813241,1729866671603,-2461.99,0.00060273,120]
[340813242,1729866671612,-2461.99,0.00060273,120]
[340813243,1729866671622,-2461.99,0.00060273,120]
[340813244,1729866671632,-2461.99,0.00060273,120]
[340813245,1729866671641,-2461.99,0.00060273,120]
[340813246,1729866671651,-2461.99,0.00060273,120]
[340813247,1729866671661,-2461.99,0.00060273,120]
[340813248,1729866671672,-2461.99,0.00060273,120]
[340813249,1729866671682,-2462.05557084,0.00060273,120]
[340813250,1729866671693,-500.0,0.00060287,120]
[340813251,1729866671703,-5003.87263,0.00060296,30]
[340813252,1729866671713,-4464.61,0.000603,60]
[340813253,1729866671723,-800.0,0.00060365,120]
[340813254,1729866671733,-500.0,0.00060486,120]
[340813255,1729866671743,-171.13,0.00060494,2]
[340813256,1729866671753,-8337.12016997,0.000608,120]
[340813257,1729866671768,-900.0,0.00060929,120]
[340813258,1729866671778,-7113.0,0.0006093,120]
[340813259,1729866671788,-50000.0,0.00061,51]
[340813260,1729866671798,-50000.0,0.00061,61]
[340813261,1729866671807,-35064.89714405,0.00061,120]
[340813262,1729866671817,-13350.0,0.00061,30]
[340813263,1729866671827,-290.47415312,0.00061,120]
[340813264,1729866671837,-26021.4,0.00061,120]
[340813265,1729866671847,-17680.69,0.00061,120]
[340813266,1729866671856,-500000.0,0.00061,120]
[340813267,1729866671866,-14311.0,0.00061,30]
[340813268,1729866671875,-800.0,0.00061075,120]
[340813269,1729866671884,-157.102509,0.00061198,120]
[340813270,1729866671894,-500.0,0.00061223,120]
[340813271,1729866671905,-157.102509,0.00061398,120]
[340813272,1729866671915,-900.0,0.00061492,120]
[340813273,1729866671924,-157.102509,0.00061598,120]
[340813274,1729866671934,-800.0,0.00061622,120]
[340813275,1729866671944,-374.32,0.00061634,2]
[340813276,1729866671954,-700.0,0.00061653,120]
[340813277,1729866671964,-1000.0,0.00061678,120]
[340813278,1729866671973,-200000.0,0.000617,58]
[340813279,1729866671983,-757.42,0.00061781,60]
[340813280,1729866671993,-157.102509,0.00061798,120]
[340813281,1729866672003,-8337.12016997,0.000618,120]
[340813282,1729866672014,-900.0,0.00061803,120]
[340813283,1729866672024,-14192.0,0.0006186,120]
[340813284,1729866672033,-2000.0,0.00061918,30]
[340813285,1729866672043,-500.0,0.00061922,120]
[340813286,1729866672052,-157.102509,0.00061998,120]
[340813287,1729866672061,-10000.0,0.00061999,120]
[340813288,1729866672071,-50000.0,0.00062,52]
[340813289,1729866672080,-50000.0,0.00062,62]
[340813290,1729866672090,-190.0,0.00062,120]
[340813291,1729866672099,-30677.02863506,0.00062,120]
[340813292,1729866672108,-5000.0,0.00062,120]
[340813293,1729866672118,-5000.0,0.00062,120]
[340813294,1729866672127,-401.03826431,0.00062,61]
[340813295,1729866672136,-500000.0,0.00062,120]
[340813296,1729866672146,-1754.79188784,0.00062,60]
[340813297,1729866672157,-300.0,0.00062,120]
[340813298,1729866672166,-700.0,0.00062003,120]
[340813299,1729866672176,-800.0,0.00062078,120]
[340813300,1729866672187,-500.0,0.00062152,120]
[340813301,1729866672197,-500.0,0.00062174,120]
[340813302,1729866672206,-2000.0,0.00062192,30]
[340813303,1729866672216,-157.102509,0.00062198,120]
[340813304,1729866672225,-500.0,0.00062382,13]
[340813305,1729866672234,-168.0,0.00062382,13]
[340813306,1729866672243,-157.102509,0.00062398,120]
[340813307,1729866672253,-700.0,0.00062418,120]
[340813308,1729866672264,-500.0,0.00062465,120]
[340813309,1729866672272,-483.84699056,0.00062465,120]
[340813310,1729866672281,-2000.0,0.00062466,30]
[340813311,1729866672290,-500.0,0.000625,120]
[340813312,1729866672300,-700.0,0.00062537,120]
[340813313,1729866672309,-700.0,0.00062591,120]
[340813314,1729866672323,-157.102509,0.00062598,120]
[340813315,1729866672333,-700.0,0.00062607,120]
[340813316,1729866672342,-150.0,0.0006274,60]
[340813317,1729866672351,-359.94,0.0006274,60]
[340813318,1729866672362,-430.47,0.0006274,60]
[340813319,1729866672371,-150.0,0.0006274,60]
[340813320,1729866672380,-359.94,0.0006274,60]
[340813321,1729866672389,-430.47,0.0006274,60]
[340813322,1729866672399,-150.0,0.0006274,60]
[340813323,1729866672408,-430.47,0.0006274,60]
[340813324,1729866672419,-359.94,0.0006274,60]
[340813325,1729866672428,-429.23,0.0006274,60]
[340813326,1729866672439,-150.0,0.0006274,60]
[340813327,1729866672448,-359.94,0.0006274,60]
[340813328,1729866672458,-2000.0,0.0006274,30]
[340813329,1729866672467,-38789.0,0.0006275,120]
[340813330,1729866672477,-157.102509,0.00062798,120]
[340813331,1729866672486,-24832.101054,0.000628,30]
[340813332,1729866672496,-24832.101054,0.000628,30]
[340813333,1729866672504,-24832.101054,0.000628,30]
[340813334,1729866672516,-24832.101054,0.000628,30]
[340813335,1729866672524,-24832.101054,0.000628,30]
[340813336,1729866672533,-24832.101054,0.000628,30]
[340813337,1729866672542,-24832.101054,0.000628,30]
[340813338,1729866672552,-24832.101054,0.000628,30]
[340813339,1729866672561,-24832.101054,0.000628,30]
[340813340,1729866672571,-8337.12016997,0.000628,120]
[340813341,1729866672579,-500.0,0.00062821,120]
[340813342,1729866672589,-31045.0,0.0006283,120]
[340813343,1729866672599,-1273.26762486,0.00062898,120]
[340813344,1729866672608,-40292.38357459,0.000629,120]
[340813345,1729866672617,-3010.8979901,0.00062997,120]
[340813346,1729866672626,-2287.95682949,0.00062997,120]
[340813347,1729866672635,-2625.00000002,0.00062997,120]
[340813348,1729866672644,-101803.89549821,0.00062997,120]
[340813349,1729866672653,-10014.54251328,0.00062999,120]
[340813350,1729866672662,-50000.0,0.00063,53]
[340813351,1729866672671,-50000.0,0.00063,63]
[340813352,1729866672749,-2238637.97247497,0.00063,5]
[340813353,1729866672768,-538400.93,0.00063,120]
[340813354,1729866672778,-517.05960477,0.00063,120]
[340813355,1729866672787,-9429.77338451,0.00063,60]
[340813356,1729866672797,-32822.58,0.00063,120]
[340813357,1729866672808,-30289.47891742,0.00063,120]
[340813358,1729866672818,-496.40420004,0.00063,60]
[340813359,1729866672828,-1000000.0,0.00063,120]
[340813360,1729866672838,-500000.0,0.00063,120]
[340813361,1729866672848,-770378.41,0.00063,120]
[340813362,1729866672858,-2088.0,0.00063,15]
[340813363,1729866672869,-398.03172042,0.00063,120]
[340813364,1729866672881,-4598950.99,0.00063,120]
[340813365,1729866672891,-2000.0,0.00063,120]
[340813366,1729866672902,-11399.90197655,0.00063,30]
[340813367,1729866672914,-4343.91014692,0.00063,120]
[340813368,1729866672924,-384.43,0.00063013,120]
[340813369,1729866672933,-384.43,0.00063013,120]
[340813370,1729866672945,-384.43,0.00063013,120]
[340813371,1729866672954,-384.43,0.00063013,120]
[340813372,1729866672964,-384.43,0.00063013,120]
[340813373,1729866672973,-384.43,0.00063013,120]
[340813374,1729866672983,-384.43,0.00063013,120]
[340813375,1729866672992,-384.43,0.00063013,120]
[340813376,1729866673001,-384.43,0.00063013,120]
[340813377,1729866673012,-384.43,0.00063013,120]
[340813378,1729866673022,-384.43,0.00063013,120]
[340813379,1729866673031,-384.43,0.00063013,120]
[340813380,1729866673040,-384.43,0.00063013,120]
[340813381,1729866673050,-384.43,0.00063013,120]
[340813382,1729866673059,-384.43,0.00063013,120]
[340813383,1729866673068,-384.43,0.00063013,120]
[340813384,1729866673077,-384.43,0.00063013,120]
[340813385,1729866673086,-384.43,0.00063013,120]
[340813386,1729866673095,-384.43,0.00063013,120]
[340813387,1729866673105,-384.43,0.00063013,120]
[340813388,1729866673113,-384.43,0.00063013,120]
[340813389,1729866673123,-384.43,0.00063013,120]
[340813390,1729866673133,-384.43,0.00063013,120]
[340813391,1729866673144,-384.43881522,0.00063013,120]
[340813392,1729866673153,-2000.0,0.00063014,30]
[340813393,1729866673162,-700.0,0.0006304,120]
[340813394,1729866673172,-700.0,0.00063046,120]
[340813395,1729866673181,-501.52697118,0.00063061,120]
[340813396,1729866673191,-900.0,0.0006313,120]
[340813397,1729866673200,-607.38572479,0.00063176,120]
[340813398,1729866673210,-700.0,0.00063373,120]
[340813399,1729866673220,-150.0,0.00063399,30]
[340813400,1729866673230,-1000000.0,0.000635,120]
[340813401,1729866673239,-10000.0,0.000635,30]
[340813402,1729866673249,-900.0,0.00063512,120]
[340813403,1729866673261,-150.0,0.00063562,60]
[340813404,1729866673272,-359.94,0.00063562,60]
[340813405,1729866673281,-717.99,0.00063562,60]
[340813406,1729866673290,-150.0,0.00063562,60]
[340813407,1729866673300,-150.0,0.00063562,60]
[340813408,1729866673309,-150.0,0.00063562,60]
[340813409,1729866673322,-154.82,0.00063562,60]
[340813410,1729866673331,-150.0,0.00063562,60]
[340813411,1729866673341,-150.0,0.00063562,60]
[340813412,1729866673350,-220.78,0.00063562,60]
[340813413,1729866673360,-5003.87263,0.00063646,30]
[340813414,1729866673370,-800.0,0.00063721,120]
[340813415,1729866673380,-30000.0,0.0006377,120]
[340813416,1729866673389,-8337.12016997,0.000638,120]
[340813417,1729866673399,-800.0,0.00063865,120]
[340813418,1729866673409,-374.32,0.00063897,2]
[340813419,1729866673418,-207.27273084,0.000639,120]
[340813420,1729866673427,-500.0,0.00063972,120]
[340813421,1729866673436,-500.0,0.00063972,120]
[340813422,1729866673446,-50000.0,0.00064,64]
[340813423,1729866673455,-50000.0,0.00064,54]
[340813424,1729866673465,-40000.0,0.00064,120]
[340813425,1729866673474,-130000.0,0.00064,120]
[340813426,1729866673483,-1000000.0,0.00064,120]
[340813427,1729866673492,-160.0,0.00064,120]
[340813428,1729866673503,-4464.61,0.00064,60]
[340813429,1729866673516,-163.26,0.00064,120]
[340813430,1729866673526,-503.01007468,0.00064048,120]
[340813431,1729866673536,-800.0,0.00064065,120]
[340813432,1729866673546,-1012423.0,0.00064286,120]
[340813433,1729866673556,-11399.90197655,0.00064286,30]
[340813434,1729866673566,-150.26265148,0.00064288,120]
[340813435,1729866673575,-900.0,0.00064353,120]
[340813436,1729866673585,-2266.0,0.00064383,120]
[340813437,1729866673595,-1000000.0,0.000645,120]
[340813438,1729866673605,-411.89490563,0.0006452,120]
[340813439,1729866673615,-208.98167927,0.0006452,120]
[340813440,1729866673624,-2266.0,0.0006452,120]
[340813441,1729866673635,-700.0,0.00064537,120]
[340813442,1729866673644,-700.0,0.0006456,120]
[340813443,1729866673654,-300.0,0.0006457,120]
[340813444,1729866673663,-171.67,0.00064625,30]
[340813445,1729866673673,-2266.0,0.00064657,120]
[340813446,1729866673682,-20000.0,0.0006473,120]
[340813447,1729866673692,-14372.414999,0.0006473,120]
[340813448,1729866673701,-2266.0,0.00064794,120]
[340813449,1729866673711,-8337.12016997,0.000648,120]
[340813450,1729866673720,-30000.0,0.0006483,120]
[340813451,1729866673730,-4920.74267271,0.00064852,120]
[340813452,1729866673740,-401.0,0.000649,50]
[340813453,1729866673749,-7719.63894315,0.000649,60]
[340813454,1729866673761,-291.0,0.000649,50]
[340813455,1729866673770,-269.62585949,0.00064915,40]
[340813456,1729866673780,-2266.0,0.00064931,120]
[340813457,1729866673789,-263.61352717,0.00064956,120]
[340813458,1729866673798,-166.3217547,0.00064956,120]
[340813459,1729866673808,-50000.0,0.00065,55]
[340813460,1729866673817,-50000.0,0.00065,65]
[340813461,1729866673826,-693.49421426,0.00065,2]
[340813462,1729866673835,-500000.0,0.00065,120]
[340813463,1729866673845,-760.0,0.00065,120]
[340813464,1729866673854,-1000000.0,0.00065,120]
[340813465,1729866673863,-500000.0,0.00065,120]
[340813466,1729866673873,-6000.0,0.00065,30]
[340813467,1729866673882,-10165.98,0.00065,120]
[340813468,1729866673891,-5000.0,0.00065,120]
[340813469,1729866673900,-310.49208839,0.00065,120]
[340813470,1729866673910,-29218.13040329,0.00065,120]
[340813471,1729866673919,-2266.0,0.00065068,120]
[340813472,1729866673929,-500.0,0.00065125,120]
[340813473,1729866673938,-1391.38,0.00065205,120]
[340813474,1729866673947,-1391.38,0.00065205,120]
[340813475,1729866673957,-1391.38,0.00065205,120]
[340813476,1729866673966,-1391.38,0.00065205,120]
[340813477,1729866673975,-1391.38,0.00065205,120]
[340813478,1729866673984,-1391.38,0.00065205,120]
[340813479,1729866673994,-1391.38,0.00065205,120]
[340813480,1729866674003,-1391.38,0.00065205,120]
[340813481,1729866674015,-1391.38,0.00065205,120]
[340813482,1729866674025,-1391.38,0.00065205,120]
[340813483,1729866674034,-500.0,0.00065205,120]
[340813484,1729866674045,-475.0,0.00065205,120]
[340813485,1729866674131,-503.72846308,0.00065205,120]
[340813486,1729866674141,-478.3779839,0.00065205,120]
[340813487,1729866674151,-2266.0,0.00065205,120]
[340813488,1729866674161,-900.0,0.00065235,120]
[340813489,1729866674170,-500.0,0.00065333,120]
[340813490,1729866674180,-2266.0,0.00065342,120]
[340813491,1729866674189,-2266.0,0.00065479,120]
[340813492,1729866674199,-700.0,0.00065496,120]
[340813493,1729866674209,-1000000.0,0.000655,120]
[340813494,1729866674218,-500000.0,0.000655,120]
[340813495,1729866674227,-26564.10528296,0.0006555,2]
[340813496,1729866674237,-500.0,0.00065597,120]
[340813497,1729866674246,-1391.38,0.00065598,120]
[340813498,1729866674256,-2266.0,0.00065616,120]
[340813499,1729866674270,-424.34,0.00065616,60]
[340813500,1729866674280,-757.42,0.00065616,60]
[340813501,1729866674290,-425.03,0.00065616,60]
[340813502,1729866674300,-757.42,0.00065616,60]
[340813503,1729866674310,-757.42,0.00065616,60]
[340813504,1729866674324,-425.03,0.00065616,60]
[340813505,1729866674333,-757.42,0.00065616,60]
[340813506,1729866674342,-1540.84,0.00065616,60]
[340813507,1729866674352,-425.03,0.00065616,60]
[340813508,1729866674361,-1514.08,0.00065616,60]
[340813509,1729866674370,-425.03,0.00065616,60]
[340813510,1729866674380,-425.03,0.00065616,60]
[340813511,1729866674390,-757.42,0.00065616,60]
[340813512,1729866674399,-425.03,0.00065616,60]
[340813513,1729866674409,-757.42,0.00065616,60]
[340813514,1729866674418,-757.42,0.00065616,60]
[340813515,1729866674427,-425.03,0.00065616,60]
[340813516,1729866674436,-757.42,0.00065616,60]
[340813517,1729866674445,-425.03,0.00065616,60]
[340813518,1729866674454,-425.03,0.00065616,60]
[340813519,1729866674464,-938.45,0.00065616,60]
[340813520,1729866674473,-950.8,0.00065616,60]
[340813521,1729866674483,-610.76181573,0.00065663,120]
[340813522,1729866674492,-500.0,0.00065667,120]
[340813523,1729866674502,-152.0,0.00065696,5]
[340813524,1729866674513,-160.59440415,0.00065696,5]
[340813525,1729866674522,-1391.38,0.00065698,120]
[340813526,1729866674531,-1391.38,0.00065699,120]
[340813527,1729866674540,-1391.38,0.00065699,120]
[340813528,1729866674550,-500.0,0.00065749,120]
[340813529,1729866674559,-1155.42,0.00065753,120]
[340813530,1729866674568,-1155.42,0.00065753,120]
[340813531,1729866674577,-1155.42,0.00065753,120]
[340813532,1729866674586,-1155.42,0.00065753,120]
[340813533,1729866674596,-1155.42,0.00065753,120]
[340813534,1729866674605,-1155.42,0.00065753,120]
[340813535,1729866674614,-1155.42,0.00065753,120]
[340813536,1729866674623,-1155.42,0.00065753,120]
[340813537,1729866674633,-1155.42,0.00065753,120]
[340813538,1729866674642,-1155.42,0.00065753,120]
[340813539,1729866674651,-1155.42,0.00065753,120]
[340813540,1729866674661,-1155.42,0.00065753,120]
[340813541,1729866674670,-1155.42,0.00065753,120]
[340813542,1729866674679,-1155.42,0.00065753,120]
[340813543,1729866674688,-1155.42,0.00065753,120]
[340813544,1729866674697,-1155.42,0.00065753,120]
[340813545,1729866674707,-1155.42,0.00065753,120]
[340813546,1729866674716,-1155.42,0.00065753,120]
[340813547,1729866674725,-1155.42,0.00065753,120]
[340813548,1729866674735,-1155.42,0.00065753,120]
[340813549,1729866674744,-1155.42,0.00065753,120]
[340813550,1729866674754,-1155.42,0.00065753,120]
[340813551,1729866674768,-1155.42,0.00065753,120]
[340813552,1729866674777,-1155.47522061,0.00065753,120]
[340813553,1729866674787,-2266.0,0.00065753,120]
[340813554,1729866674796,-800.0,0.00065754,120]
[340813555,1729866674805,-8337.12016997,0.000658,120]
[340813556,1729866674814,-5800.0,0.00065801,21]
[340813557,1729866674824,-5800.0,0.0006582,21]
[340813558,1729866674833,-5800.0,0.00065828,21]
[340813559,1729866674842,-1725.12049934,0.00065839,21]
[340813560,1729866674852,-500.0,0.00065846,120]
[340813561,1729866674861,-800.0,0.00065856,120]
[340813562,1729866674870,-2266.0,0.0006589,120]
[340813563,1729866674879,-320.787359,0.000659,30]
[340813564,1729866674888,-212.42353397,0.000659,120]
[340813565,1729866674897,-30000.0,0.0006593,120]
[340813566,1729866674907,-1391.38,0.00065998,120]
[340813567,1729866674917,-1391.38,0.00065999,120]
[340813568,1729866674926,-1391.38,0.00065999,120]
[340813569,1729866674936,-1391.38,0.00065999,120]
[340813570,1729866674946,-1391.38,0.00065999,120]
[340813571,1729866674956,-1391.38,0.00065999,120]
[340813572,1729866674965,-1391.38,0.00065999,120]
[340813573,1729866674977,-1391.38,0.00065999,120]
[340813574,1729866674986,-1391.38,0.00065999,120]
[340813575,1729866674996,-1391.55,0.00065999,120]
[340813576,1729866675006,-50000.0,0.00066,50]
[340813577,1729866675020,-50000.0,0.00066,60]
[340813578,1729866675029,-1000000.0,0.00066,120]
[340813579,1729866675039,-1130.91301355,0.00066,120]
[340813580,1729866675048,-9310.79591966,0.00066,120]
[340813581,1729866675057,-500000.0,0.00066,120]
[340813582,1729866675067,-500000.0,0.00066,120]
[340813583,1729866675076,-300.0,0.00066,120]
[340813584,1729866675086,-283.45795965,0.00066,61]
[340813585,1729866675095,-1242.77786576,0.00066,120]
[340813586,1729866675105,-5000.0,0.00066,120]
[340813587,1729866675115,-666.55517388,0.00066,120]
[340813588,1729866675124,-324.2928905,0.00066,120]
[340813589,1729866675134,-2266.0,0.00066027,120]
[340813590,1729866675143,-359.94,0.00066027,60]
[340813591,1729866675153,-152.33,0.00066027,60]
[340813592,1729866675162,-430.47,0.00066027,60]
[340813593,1729866675171,-430.47,0.00066027,60]
[340813594,1729866675181,-359.94,0.00066027,60]
[340813595,1729866675190,-430.47,0.00066027,60]
[340813596,1729866675199,-359.94,0.00066027,60]
[340813597,1729866675209,-456.42,0.00066027,60]
[340813598,1729866675218,-359.94,0.00066027,60]
[340813599,1729866675227,-359.94,0.00066027,60]
[340813600,1729866675237,-243.46,0.00066027,60]
[340813601,1729866675247,-500.0,0.00066132,120]
[340813602,1729866675256,-374.32,0.00066161,2]
[340813603,1729866675269,-2266.0,0.00066164,120]
[340813604,1729866675279,-1019.31211912,0.00066301,120]
[340813605,1729866675289,-900.0,0.00066397,120]
[340813606,1729866675298,-500.0,0.00066474,120]
[340813607,1729866675307,-1000000.0,0.000665,120]
[340813608,1729866675386,-176.0,0.00066504,8]
[340813609,1729866675397,-916.50241235,0.000666,120]
[340813610,1729866675407,-700.0,0.00066672,120]
[340813611,1729866675416,-500.0,0.00066677,120]
[340813612,1729866675426,-900.0,0.00066784,120]
[340813613,1729866675435,-8337.12016997,0.000668,120]
[340813614,1729866675444,-900.0,0.00066839,120]
[340813615,1729866675454,-222.44,0.00066849,60]
[340813616,1729866675464,-874.85416581,0.0006688,120]
[340813617,1729866675473,-800.0,0.00066901,120]
[340813618,1729866675483,-700.0,0.00066917,120]
[340813619,1729866675493,-10000.0,0.0006698,30]
[340813620,1729866675502,-50000.0,0.00067,50]
[340813621,1729866675513,-50000.0,0.00067,61]
[340813622,1729866675522,-171.59399978,0.00067,120]
[340813623,1729866675531,-1000000.0,0.00067,120]
[340813624,1729866675541,-500000.0,0.00067,120]
[340813625,1729866675550,-5000.0,0.00067,120]
[340813626,1729866675559,-500000.0,0.00067,120]
[340813627,1729866675570,-150.0,0.00067,120]
[340813628,1729866675579,-10000.0,0.00067,120]
[340813629,1729866675589,-652.2321,0.00067,120]
[340813630,1729866675599,-11399.90197655,0.00067,30]
[340813631,1729866675609,-15298.99478482,0.00067,120]
[340813632,1729866675619,-8875.17578979,0.00067,120]
[340813633,1729866675629,-3680.12193223,0.00067,120]
[340813634,1729866675638,-2542.91517084,0.00067,120]
[340813635,1729866675649,-3493.42068713,0.00067,120]
[340813636,1729866675659,-5003.87263,0.000672,30]
[340813637,1729866675670,-500.0,0.00067208,120]
[340813638,1729866675680,-800.0,0.00067253,120]
[340813639,1729866675690,-800.0,0.00067261,120]
[340813640,1729866675700,-24261.64832107,0.000673,30]
[340813641,1729866675710,-2000.0,0.00067397,30]
[340813642,1729866675720,-1282837.0,0.0006744,30]
[340813643,1729866675730,-158.94,0.00067476,120]
[340813644,1729866675740,-800.0,0.00067597,120]
[340813645,1729866675749,-171.25234877,0.000676,33]
[340813646,1729866675759,-2000.0,0.00067671,30]
[340813647,1729866675772,-188.02,0.000677,69]